Cogmind - Beta 11 *** ADVENTURER MODE // 2022.03.18 @ 22:35:02 Player: Departed Result: Destroyed by D-53 Grenadier with Mini Grenade Launcher Performance ------------- Evolutions (0) 0 Regions Visited (2) 400 Robots Destroyed (5) 25 Value Destroyed (111) 111 Prototype IDs (0) 0 Alien Tech Used (0) 0 Bonus (0) 0 TOTAL SCORE: 536 Bonus ------- None Cogmind --------- Core Integrity 0/250 Matter 273/300 Energy 62/265 System Corruption 5% Temperature Cool (0) Movement Hovering (420) Ox6 Location -10/Mines Parts ------- > --- POWER (1) -------- Improved Ion Engine > --- PROPULSION (2) --- Hover Unit > --- UTILITY (2) ------ Improved Heat Sink Large Storage Unit > --- WEAPON (2) ------- Bore Cannon > --- INVENTORY (15) --- Ion Engine Light Treads Terrain Scanner High-powered Tractor Beam Small Laser Light Assault Rifle Light Assault Rifle Peak State ------------ > --- POWER ------------ (None) > --- PROPULSION ------- Aluminum Leg > --- UTILITY ---------- Improved Heat Sink Large Storage Unit > --- WEAPON ----------- Assault Rifle Bore Cannon > --- INVENTORY -------- Ion Engine Improved Ion Engine Light Treads Hover Unit Terrain Scanner High-powered Tractor Beam Small Laser Light Assault Rifle Light Assault Rifle [Rating: 12] Favorites ----------- Power Improved Ion Engine Engine Improved Ion Engine Propulsion Aluminum Leg Treads Light Treads Leg Aluminum Leg Utility Large Storage Unit Device Improved Heat Sink Storage Large Storage Unit Protection Power Shielding Weapon Assault Rifle Energy Gun Small Laser Energy Cannon Beam Cannon Ballistic Gun Assault Rifle Ballistic Cannon Bore Cannon Build | -11 -10 -10 ------- Run | Scr Mat Min Slots Evolved . | . . . Power . | . . . Propulsion . | . . . Utility . | . . . Weapon . | . . . Parts Attached 20 | 8 9 3 Power 4 | 2 1 1 Engine 4 | 2 1 1 Core . | . . . Reactor . | . . . Propulsion 5 | 3 1 1 Treads 1 | 1 . . Leg 3 | 2 1 . Wheel . | . . . Hover 1 | . . 1 Flight . | . . . Utility 6 | 1 5 . Device 3 | . 3 . Storage 2 | 1 1 . Processor . | . . . Hackware . | . . . Protection 1 | . 1 . Artifact . | . . . Weapon 5 | 2 2 1 Energy Gun 1 | 1 . . Energy Cannon 1 | . 1 . Ballistic Gun 2 | 1 1 . Ballistic Cannon 1 | . . 1 Launcher . | . . . Special Weapon . | . . . Impact Weapon . | . . . Slashing Weapon . | . . . Piercing Weapon . | . . . Special Melee Weapon . | . . . Unidentified Prototypes . | . . . Parts Lost 5 | . . 5 Power 1 | . . 1 Propulsion 2 | . . 2 Utility . | . . . Weapon 2 | . . 2 Highest Loss Streak 5 | . . 5 To Critical Strikes 1 | . . 1 Average Slot Usage (%) 97 | . 97 96 Engine 13 | . 14 11 Leg 27 | . 27 28 Device 7 | . 6 14 Storage 14 | . 14 14 Protection 6 | . 7 . Energy Gun 2 | . 2 . Energy Cannon 10 | . 10 12 Ballistic Gun 14 | . 14 14 Naked Turns . | . . . Heaviest Build 33 | 13 33 33 Greatest Support 20 | 20 20 20 Greatest Overweight (x) 3 | 1 3 1 Average Overweight (x) . | . . 1 Largest Inventory Capacity 15 | 8 15 15 Average Capacity 13 | 7 13 15 Most Carried 11 | 3 11 9 Average Carried 8 | 2 8 8 Final Capacity 15 | 8 15 15 Final Carried 9 | 3 9 7 Class Distribution -------------------- 100% | Mutant Dominant Class ---------------- Mutant | -10/Materials Mutant | -10/Mines Resources | -11 -10 -10 ----------- Run | Scr Mat Min Matter Collected 458 | 275 143 40 Remotely . | . . . Salvage Created 171 | . 143 28 Parts 8 | . 8 . Haulers Intercepted . | . . . Recyclers Shooed 1 | . 1 . Parts Field Recycled . | . . . Retrieved Matter . | . . . Parts Self-Destructed . | . . . Prevented . | . . . Kills | -11 -10 -10 ------- Run | Scr Mat Min Combat Hostiles Destroyed 7 | . 5 2 Guns 2 | . 1 1 Cannons 5 | . 4 1 Classes Destroyed 3 | . 2 1 Swarmer 3 | . 3 . Grunt 2 | . 2 . Assembled 2 | . . 2 Best Kill Streak 3 | . 3 2 Combat Bots Only 3 | . 3 2 Max Kills in Single Turn 1 | . 1 1 Gunslinging . | . . . Exploded . | . . . Melee . | . . . Uniques/NPCs Destroyed . | . . . Combat | -11 -10 -10 -------- Run | Scr Mat Min Damage Taken 898 | . 205 693 Core 272 | . 51 221 Absorbed by Shields . | . . . Redirected to Shielding 7 | . 7 . Regen/Repaired (Parts) 27 | . 27 . Core Remaining (%) 100 | 100 . . Volleys Fired 33 | . 27 6 Largest 2 | . 2 2 Hottest 80 | . 80 80 Shots Fired 65 | . 54 11 Gun 32 | . 27 5 Cannon 33 | . 27 6 Launcher . | . . . Special . | . . . Kinetic 33 | . 27 6 Thermal 32 | . 27 5 Explosive . | . . . Electromagnetic . | . . . Robot Hit Streak 9 | . 9 4 Robot Miss Streak 4 | . 4 1 Penetration Max . | . . . Secondary Targets . | . . . Shots Hit Robots 35 | . 29 6 Core Hits 13 | . 9 4 Critical Kills . | . . . Critical Parts Destroyed . | . . . Critical Strikes . | . . . Melee Attacks . | . . . Impact . | . . . Slashing . | . . . Piercing . | . . . Sneak Attacks . | . . . Combat Hostiles . | . . . Follow-up Attacks . | . . . Damage Inflicted 568 | . 449 119 Guns 249 | . 183 66 Cannons 319 | . 266 53 Explosions . | . . . Melee . | . . . Ramming . | . . . Kinetic 249 | . 183 66 Thermal 319 | . 266 53 Explosive . | . . . Electromagnetic . | . . . Impact . | . . . Slashing . | . . . Piercing . | . . . Highest Corruption 5 | . 1 5 Average Corruption 1 | . 1 1 Corruption Purged . | . . . Corruption Blocked . | . . . Effects 5 | . 3 2 Matter Fused 1 | . 1 . Heat Flow Errors 1 | . . 1 Energy Discharges 2 | . 1 1 Data Loss (minor) 1 | . 1 . Overload Shots . | . . . Overflow Damage . | . . . Projectiles . | . . . Explosions . | . . . Melee . | . . . Knockbacks . | . . . Impact . | . . . Kinetic . | . . . Secondary . | . . . Self-Inflicted Damage . | . . . Shots . | . . . Rammed . | . . . Targets Rammed . | . . . Kicked . | . . . Crushed . | . . . Highest Temperature 399 | . 399 290 Average Temperature 183 | . 189 152 Received Heat Transfer 111 | . 111 . Effects 1 | . 1 . Shutdowns 1 | . 1 . Siege Activations . | . . . Robots Corrupted . | . . . Combat Hostiles . | . . . Parts Fried . | . . . Impact Corruptions . | . . . Robots Melted . | . . . Combat Hostiles . | . . . Parts Melted . | . . . Heat Transferred 666 | . 555 111 Parts Sabotaged . | . . . Parts Stolen . | . . . Parts Stripped . | . . . Power Chain Reactions . | . . . Missiles Intercepted . | . . . Alert | -11 -10 -10 ------- Run | Scr Mat Min Peak Influence 118 | . 118 38 Initial 38 | . . 38 Average 23 | . 23 34 Maximum Alert Level . | . . . Low Security (%) 100 | 100 100 100 Level 1 . | . . . Level 2 . | . . . Level 3 . | . . . Level 4 . | . . . Level 5 . | . . . High Security . | . . . Max Security . | . . . Squads Dispatched . | . . . Investigation . | . . . Extermination . | . . . Reinforcement . | . . . Assault . | . . . Garrison . | . . . Intercept . | . . . Searches Triggered . | . . . Construction Impeded . | . . . Haulers Reinforced . | . . . Active Scanning Responses . | . . . Cargo Convoy Interrupts . | . . . Stealth | -11 -10 -10 --------- Run | Scr Mat Min Distress Signals 2 | . 2 . Communications Jammed . | . . . Distress Signals . | . . . Times Spotted 29 | . 10 19 Peak Tracking Total 16 | . 5 16 Tactical Retreats . | . . . Traps | -11 -10 -10 ------- Run | Scr Mat Min Traps Triggered 1 | . 1 . Indirectly . | . . . Trap Hack Attempts . | . . . Triggered . | . . . Disarmed . | . . . Reprogrammed . | . . . Reused . | . . . Traps Extracted . | . . . Installed . | . . . Triggered . | . . . Machines | -11 -10 -10 ---------- Run | Scr Mat Min Machines Disabled . | . . . Max in Single Turn . | . . . Machines Sabotaged . | . . . Garrisons Compromised . | . . . Overloaded Fab Kills . | . . . Hacking | -11 -10 -10 --------- Run | Scr Mat Min Machines Accessed 4 | . 4 . Terminals 3 | . 3 . Fabricators . | . . . Repair Stations 1 | . 1 . Recycling Units . | . . . Scanalyzers . | . . . Garrison Access . | . . . Total Hacks 7 | . 7 . Successful 6 | . 6 . Failed 1 | . 1 . Catastrophic . | . . . Database Lockouts . | . . . Manual . | . . . Terminals 5 | . 5 . Fabricators . | . . . Repair Stations 2 | . 2 . Recycling Units . | . . . Scanalyzers . | . . . Garrison Access . | . . . Terminal Hacks 4 | . 4 . Locate Traps 2 | . 2 . Zone Layout 2 | . 2 . Fabricator Hacks . | . . . Repair Station Hacks 2 | . 2 . Scan Component 1 | . 1 . Repair 1 | . 1 . Recycling Unit Hacks . | . . . Scanalyzer . | . . . Garrison Access Hacks . | . . . Unauthorized Hacks . | . . . Terminals . | . . . Fabricators . | . . . Repair Stations . | . . . Recycling Units . | . . . Scanalyzers . | . . . Garrison Access . | . . . Data Cores Recovered . | . . . Used . | . . . Hacking Detections . | . . . Full Trace Events . | . . . Feedback Events . | . . . Feedback Blocked . | . . . Robot Schematics Acquired . | . . . Robots Built . | . . . Authchips . | . . . Time . | . . . Total Robot Build Rating . | . . . Part Schematics Acquired . | . . . Parts Built . | . . . Authchips . | . . . Time . | . . . Total Part Build Rating . | . . . Parts Repaired 1 | . 1 . Time 26 | . 26 . Parts Recycled . | . . . Recycled Matter . | . . . Retrieved Matter . | . . . Retrieved Components . | . . . Parts Scanalyzed . | . . . Part Schematics Acquired . | . . . Parts Damaged . | . . . Bothacking | -11 -10 -10 ------------ Run | Scr Mat Min Used RIF Installer . | . . . Robots Hacked . | . . . Non-combat . | . . . Combat . | . . . Robot Hacks Applied . | . . . Relay Couplers Released . | . . . Fabnet Peak Effective % . | . . . Robots Rewired . | . . . Allies Hacked . | . . . Hacks Repelled . | . . . Allies | -11 -10 -10 -------- Run | Scr Mat Min Total Allies . | . . . Largest Group . | . . . Highest-Rated Group . | . . . Highest-Rated Ally . | . . . Total Orders . | . . . Ally Attacks . | . . . Total Damage . | . . . Kills . | . . . Allies Corrupted . | . . . Allies Melted . | . . . Intel | -11 -10 -10 ------- Run | Scr Mat Min Robot Analysis Total . | . . . Derelict Logs Recovered 1 | . . 1 Drone Launches . | . . . Drone Recoveries . | . . . Exploration | -11 -10 -10 ------------- Run | Scr Mat Min Turns Passed 855 | 60 676 119 Spaces Moved 408 | 37 319 52 Core 1 | 1 . . Treads 1 | 1 . . Legs 406 | 35 319 52 Wheels . | . . . Hover . | . . . Flight . | . . . Fastest Speed 50 | 50 120 190 Average Speed 173 | 126 176 190 Slowest Speed 330 | 190 330 190 Overloaded Moves . | . . . Propulsion Burnouts . | . . . Robots Hopped . | . . . Cave-ins Triggered . | . . . Exploration Rate (%) 31 | 4 60 30 Regions Visited 2 Branch Regions 1 Pre-discovered Areas 1 | . . 1 Known Exits Taken . | . . . Unknown Exits Taken 2 | 1 1 . Scrap Searched 1 | . . 1 Spaces Dug . | . . . Terrain Destroyed 1 | . . 1 Melee . | . . . Projectile 1 | . . 1 AOE . | . . . Terrain Rammed . | . . . Walls Destroyed . | . . . Machines Disabled . | . . . Actions | -11 -10 -10 --------- Run | Scr Mat Min Total 484 | 46 377 61 Wait 13 | . 13 . Move 406 | 36 318 52 Hop . | . . . Pick Up 4 | 1 3 . Fast Attach 14 | 7 6 1 Attach 2 | . . 2 Detach 5 | 1 4 . Swap 4 | 1 3 . Drop 3 | . 3 . Fire 33 | . 27 6 Melee . | . . . Ram . | . . . Kick . | . . . Crush . | . . . Escape Stasis . | . . . Rewire . | . . . Trap . | . . . Miscellaneous . | . . . Route ------- -11/Scrapyard -10/Materials (discovered 3 exits: [*Mat] / [*Min x2]) -10/Mines History --------- Turn | Location | Event 21 | -11/Scrapyard | Discovered new exit (range 16) 61 | -11/Scrapyard | Entered Materials 280 | -10/Materials | Discovered new exit (range 6) 314 | -10/Materials | Build established: Mutant 329 | -10/Materials | Discovered new exit (range 13) 551 | -10/Materials | Repaired Aluminum Leg 584 | -10/Materials | Discovered new exit (range 10) 737 | -10/Materials | Entered Mines 738 | -10/Mines | Learned location of Storage (-7) 800 | -10/Mines | Learned location of 1 exit from Materials 822 | -10/Mines | Assembled infested the area 827 | -10/Mines | Assisted by a Guerilla fighting off Assembled 847 | -10/Mines | Core integrity fell below 50% 851 | -10/Mines | Core integrity fell below 20% 856 | -10/Mines | Destroyed by D-53 Grenadier with Mini Grenade Launcher Last Messages --------------- 00848_ as-66147 destroyed. 00848_ as-50872 destroyed. 00848_ as-03186 destroyed. 00849_ Critical hit (Destroy). 00849_ Beam Cannon destroyed. 00850_ Aluminum Leg destroyed. 00850_ as-51113 destroyed. 00850_ as-42370 destroyed. 00850_ as-02471 destroyed. 00850_ as-49527 destroyed. 00851_ Acquired Bore Cannon. 00852_ Assault Rifle destroyed. 00853_ Knocked back. 00853_ as-76900 destroyed. 00853_ as-84448 destroyed. 00853_ as-95274 destroyed. 00853_ as-72327 destroyed. 00854_ as-66321 destroyed. 00854_ Aluminum Leg destroyed. 00856_ as-86738 destroyed. Map ----- +----------------------------------------------------+ | ???????????????????????????????????????????????? | | ???????????????????????????????????????????????? | | ???????????????????????????????????????????????? | | ???????????????????????????????????????????????? | | ???????????????????????????????????????????????? | | ???????????????????????????????????????????????? | | ???????????????????????????????????????????????? | | ???????????????????????????????????????????????? | | ???????????????????????????????????????????????? | | ???????????????????????????????????????????????? | | ???????????????????????????????????????????????? | | ????????????????????????##?????????????????????? | | ???????????????????????? ?????????????????????? | | ??????????????????????## ##????????????????????? | | ?????????????????????## ????????????????????? | | ????????????????????## #????????????????????? | | ????????????????##### #????????????????????? | | ????????????????#; #????????????????????? | | ????????????????# #????????????????????? | | ???????? ????## #????????????????????? | | ???????? # # #????????????????????? | | ??????? % #????????????????????? | | ???????? a % ###??????????????????? | | ??????????# ##?????????????????? | | ??????????#; #?????????????????? | | ???????????# @ #?????????????????? | | ???????????# ##?????????????????? | | ??????? = #????#####????????? | | ??????? d d #???## ##???????? | | ??????? # ## ##### ####????? | | ????????### ##?# ??## t ###### | | ??????????#?????#????### % | | ???????????????????????# ##### | | ???????????????????????## ##???# ##### | | ????????????????????????####????## ##??? | | ?????????????????????????????????#### ##?? | | ????????????????????????????????????## ##? | | ?????????????????????????????????????# #? | | ?????????????????????????????????????# ## | | ?????????????????????????????????????# # | | ?????????????????????????????????????## | | ??????????????????????????????????????# | | ?????????????????????????????????????# # | | ????????????????????????????????????# # | | ??????????????????????????????????# # | | ?????????????????????????????????# # | | ????????????????????????????????# # | | ???????????????????????????????? ## | | ????????????????????????????????# ##? | | ?????????????????????????????????# #?? | +----------------------------------------------------+ Best States ------------- Heat Dissipation 39 Energy Generation 12 Energy Capacity 265 Matter Stores 300 Matter Capacity 300 Sight Range 16 Terrain Scan Range 14 Terrain Scan Density 10 Resistance: KI 20 Resistance: TH 20 Resistance: EX 20 Resistance: EM 20 Resistance: I 20 Resistance: S 20 Resistance: P 20 Power Shielding 33 Evasion (%) 55 Offensive Hacking 10 Item Schematics ----------------- None Robot Schematics ------------------ None Fabricated ------------ Nothing Alien Tech Used ----------------- None Achievements -------------- None Challenges ------------ None Game ------ Seed AnalysisGyrokineticDatajack Manual? 0 Play Time 00:12:40 Cumulative 39.3 hours Start 2022.03.18 @ 22:24:32 End 2022.03.18 @ 22:35:02 Sessions 1 Manual Loads 0 Difficulty Adventurer Special Mode None Game No. 52 Rogue 0 Adventurer 36 Explorer 16 Win Type - Total 2 Types 2/0/0/0/0/0/0/0/0 Lore% 23 Gallery% 45 Achievement% 36 Wizard Run 0 Options --------- ASCII 0 Keyboard 1 Movement Arrows Keybinds 0 Fullscreen 1 Font 18/SmallcapsGlow Map View 76x50 Tactical HUD 1 Map Filters NONE Filters NONE Steam 1 RUN: 74a9ba49-f673-48ac-8448-4ff1ed213471